[Event "RUS-ch Men Rapid 2019"]
[Site "Sochi"]
[Date "2019.10.16"]
[Round "6.17"]
[White "Papin, Vasily"]
[Black "Ivlev, Aleksey"]
[Result "1/2-1/2"]
[ECO "A06"]
[WhiteElo "2481"]
[BlackElo "2292"]
[Annotator "ChessBase"]
[PlyCount "71"]
[EventDate "2019.10.15"]
[EventType "swiss"]
[EventCountry "RUS"]
[SourceTitle "playchess.com"]
[Source "ChessBase"]
[SourceQuality "1"]
[TimeControl "900+10"]

1. Nf3 {[%emt 0:00:00]} d5 {[%emt 0:00:00]} 2. e3 {[%emt 0:00:00]} Nf6 {[%emt 0:00:00]} 3. c4 {[%emt 0:00:00]} c6 {[%emt 0:00:10]} 4. Nc3 {[%emt 0:00:03]} e6 {[%emt 0:00:03]} 5. b3 {[%emt 0:00:12]} Nbd7 {[%emt 0:00:04]} 6. Qc2 {[%emt 0:00:05]} Bd6 {[%emt 0:00:04]} 7. Bb2 {[%emt 0:00:16]} Qe7 {[%emt 0:00:11]} 8. Be2 {[%emt 0:00:13]} O-O {[%emt 0:00:05]} 9. O-O {[%emt 0:00:40]} b6 {[%emt 0:00:03]} 10. cxd5 {[%emt 0:00:33]} exd5 {[%emt 0:00:17]} 11. Nd4 {[%emt 0:00:05]} Nb8 {[%emt 0:04:42]} 12. Nf5 {[%emt 0:00:57]} Bxf5 {[%emt 0:00:22]} 13. Qxf5 {[%emt 0:00:02]} Ba3 {[%emt 0:00:10]} 14. Bxa3 {[%emt 0:01:15]} Qxa3 {[%emt 0:00:02]} 15. Rfc1 {[%emt 0:00:12]} Nbd7 {[%emt 0:00:54]} 16. d4 {[%emt 0:00:43]} Qd6 {[%emt 0:01:02]} 17. Rc2 {[%emt 0:00:03]} Rfe8 {[%emt 0:02:15]} 18. Rac1 {[%emt 0:00:08]} Re6 {[%emt 0:02:16]} 19. Qd3 {[%emt 0:01:14]} Rae8 {[%emt 0:01:06]} 20. Qa6 {[%emt 0:02:27]} Qb8 {[%emt 0:00:01]} 21. Bf3 {[%emt 0:00:00]} h5 {[%emt 0:01:44]} 22. g3 {[%emt 0:03:03]} g6 {[%emt 0:00:07]} 23. Ne2 {[%emt 0:01:31]} c5 {[%emt 0:00:27]} 24. Nf4 {[%emt 0:00:27]} Rd6 {[%emt 0:00:01]} 25. Qb5 {[%emt 0:00:19]} Kg7 {[%emt 0:00:52]} 26. Rd1 {[%emt 0:00:15]} cxd4 {[%emt 0:01:05]} 27. Rxd4 {[%emt 0:00:41]} Ne5 {[%emt 0:00:01]} 28. Bg2 {[%emt 0:00:12]} Red8 {[%emt 0:00:56]} 29. Rcd2 {[%emt 0:00:19]} Nc6 {[%emt 0:00:00]} 30. R4d3 {[%emt 0:00:10]} a6 {[%emt 0:00:01]} 31. Qa4 {[%emt 0:00:10]} b5 {[%emt 0:00:05]} 32. Qa3 {[%emt 0:00:02]} Ne5 {[%emt 0:00:03]} 33. Rd4 {[%emt 0:00:21]} Nc6 {[%emt 0:00:01]} 34. R4d3 {[%emt 0:01:52]} Ne5 {[%emt 0:00:01]} 35. Rd4 {[%emt 0:00:01]} Nc6 {[%emt 0:00:51]} 36. R4d3 {[%emt 0:00:02]} 1/2-1/2

[Event "RUS-ch Men Rapid 2019"]
[Site "Sochi"]
[Date "2019.10.16"]
[Round "6.18"]
[White "Utnasunov, Alexander"]
[Black "Gutenev, Alexander"]
[Result "0-1"]
[ECO "A50"]
[WhiteElo "2442"]
[BlackElo "2469"]
[Annotator "ChessBase"]
[PlyCount "70"]
[EventDate "2019.10.15"]
[EventType "swiss"]
[EventCountry "RUS"]
[SourceTitle "playchess.com"]
[Source "ChessBase"]
[SourceQuality "1"]
[TimeControl "900+10"]

1. d4 {[%emt 0:00:00]} Nf6 {[%emt 0:00:53]} 2. c4 {[%emt 0:00:00]} b6 {[%emt 0:00:03]} 3. Nc3 {[%emt 0:00:09]} Bb7 {[%emt 0:00:01]} 4. f3 {[%emt 0:00:04]} d5 {[%emt 0:00:07]} 5. cxd5 {[%emt 0:00:06]} Nxd5 {[%emt 0:00:02]} 6. e4 {[%emt 0:00:09]} Nxc3 {[%emt 0:00:02]} 7. bxc3 {[%emt 0:00:01]} e5 {[%emt 0:00:03]} 8. Bb5+ {[%emt 0:00:49]} c6 {[%emt 0:00:10]} 9. Bc4 {[%emt 0:00:20]} b5 {[%emt 0:01:13]} 10. Bb3 {[%emt 0:00:10]} exd4 {[%emt 0:00:03]} 11. Qxd4 {[%emt 0:02:35]} Nd7 {[%emt 0:01:49]} 12. Ne2 {[%emt 0:01:30]} c5 {[%emt 0:01:05]} 13. Qf2 {[%emt 0:00:02]} Ne5 {[%emt 0:01:03]} 14. O-O {[%emt 0:01:22]} Nd3 {[%emt 0:00:10]} 15. Qg3 {[%emt 0:00:46]} c4 {[%emt 0:00:02]} 16. Bc2 {[%emt 0:00:39]} Bc5+ {[%emt 0:00:02]} 17. Kh1 {[%emt 0:00:03]} O-O {[%emt 0:00:31]} 18. Nf4 {[%emt 0:03:57]} Nxc1 {[%emt 0:05:15]} 19. Nh5 {[%emt 0:02:20]} g6 {[%emt 0:00:01]} 20. Qe5 {[%emt 0:00:03]} gxh5 {[%emt 0:00:33]} 21. Qxc5 {[%emt 0:00:02]} Nd3 {[%emt 0:00:59]} 22. Qxb5 {[%emt 0:00:02]} Qb6 {[%emt 0:00:32]} 23. Qxh5 {[%emt 0:02:17]} Qg6 {[%emt 0:01:11]} 24. Qb5 {[%emt 0:01:05]} Ba6 {[%emt 0:00:03]} 25. Qa5 {[%emt 0:00:01]} Rab8 {[%emt 0:00:38]} 26. Rab1 {[%emt 0:00:03]} Rb6 {[%emt 0:00:40]} 27. g3 {[%emt 0:00:21]} Rfb8 {[%emt 0:00:07]} 28. Qd5 {[%emt 0:00:15]} Rxb1 {[%emt 0:00:14]} 29. Rxb1 {[%emt 0:00:02]} Rxb1+ {[%emt 0:00:07]} 30. Bxb1 {[%emt 0:00:00]} Qb6 {[%emt 0:00:21]} 31. Bc2 {[%emt 0:00:05]} Bb7 {[%emt 0:00:38]} 32. Qxc4 {[%emt 0:00:05]} Ne5 {[%emt 0:00:25]} 33. Qe2 {[%emt 0:00:02]} Ba6 {[%emt 0:00:10]} 34. Qg2 {[%emt 0:00:48]} Qe3 {[%emt 0:00:11]} 35. h4 {[%emt 0:00:09]} Nxf3 {[%emt 0:00:09]} 0-1

[Event "RUS-ch Men Rapid 2019"]
[Site "Sochi"]
[Date "2019.10.16"]
[Round "6.21"]
[White "Vastrukhin, Oleg"]
[Black "Musalov, Ruslan"]
[Result "0-1"]
[ECO "A00"]
[WhiteElo "2428"]
[BlackElo "2348"]
[Annotator "NA"]
[PlyCount "104"]
[EventDate "2019.10.15"]
[EventType "swiss"]
[EventCountry "RUS"]
[SourceTitle "playchess.com"]
[Source "ChessBase"]
[SourceQuality "1"]
[TimeControl "900+10"]

1. g3 {[%emt 0:00:00]} Nf6 {[%emt 0:00:52]} 2. Bg2 {[%emt 0:00:00]} e5 {[%emt 0:00:45]} 3. c4 {[%emt 0:00:25]} Nc6 {[%emt 0:00:13]} 4. Nc3 {[%emt 0:00:06]} a6 {[%emt 0:00:16]} 5. e3 {[%emt 0:00:17]} b5 {[%emt 0:00:42]} 6. d3 {[%emt 0:00:44]} Rb8 {[%emt 0:00:09]} 7. Nge2 {[%emt 0:00:08]} Bd6 {[%emt 0:02:49]} 8. O-O {[%emt 0:00:14]} O-O {[%emt 0:00:10]} 9. a3 {[%emt 0:00:39]} Re8 {[%emt 0:01:53]} 10. b4 {[%emt 0:00:39]} Bf8 {[%emt 0:01:13]} 11. Bb2 {[%emt 0:00:13]} Bb7 {[%emt 0:00:11]} 12. Nd5 {[%emt 0:01:01]} d6 {[%emt 0:01:17]} 13. Rc1 {[%emt 0:00:03]} Nxd5 {[%emt 0:00:58]} 14. cxd5 {[%emt 0:00:16]} Ne7 {[%emt 0:00:03]} 15. Qb3 {[%emt 0:00:02]} Qd7 {[%emt 0:00:21]} 16. d4 {[%emt 0:00:10]} Nc8 {[%emt 0:01:47]} 17. e4 {[%emt 0:03:43]} Nb6 {[%emt 0:00:21]} 18. f4 {[%emt 0:00:22]} exf4 {[%emt 0:02:31]} 19. Rxf4 {[%emt 0:02:05]} Bxd5 {[%emt 0:01:03]} 20. Qc2 {[%emt 0:00:57]} Bc4 {[%emt 0:00:05]} 21. Rcf1 {[%emt 0:01:48]} f6 {[%emt 0:00:20]} 22. R1f2 {[%emt 0:00:28]} Na4 {[%emt 0:00:26]} 23. Bc1 {[%emt 0:00:06]} c5 {[%emt 0:00:05]} 24. bxc5 {[%emt 0:01:53]} dxc5 {[%emt 0:00:01]} 25. d5 {[%emt 0:00:00]} Bd6 {[%emt 0:00:07]} 26. h4 {[%emt 0:00:06]} Bxe2 {[%emt 0:00:12]} 27. Rxe2 {[%emt 0:00:26]} b4 {[%emt 0:00:13]} 28. Rf3 {[%emt 0:00:29]} Nc3 {[%emt 0:00:12]} 29. Rxc3 {[%emt 0:01:24]} bxc3 {[%emt 0:00:01]} 30. Qxc3 {[%emt 0:00:01]} Be5 {[%emt 0:00:06]} 31. Qf3 {[%emt 0:00:57]} Rb1 {[%emt 0:00:09]} 32. Re1 {[%emt 0:00:01]} Qd6 {[%emt 0:00:06]} 33. Kh2 {[%emt 0:00:07]} c4 {[%emt 0:00:12]} 34. Bh3 {[%emt 0:00:10]} c3 {[%emt 0:00:31]} 35. Be6+ {[%emt 0:00:22]} Kh8 {[%emt 0:00:05]} 36. Qh5 {[%emt 0:00:16]} Bxg3+ {[%emt 0:00:17]} 37. Kh3 {[%emt 0:00:02]} g6 {[%emt 0:00:03]} 38. Qf3 {[%emt 0:00:04]} Be5 {[%emt 0:00:04]} 39. Bg5 {[%emt 0:00:06]} fxg5 {[%emt 0:00:19]} 40. Rxb1 {[%emt 0:00:00]} Rf8 {[%emt 0:00:06]} 41. Qd3 {[%emt 0:00:34]} gxh4 {[%emt 0:00:07]} 42. Rg1 {[%emt 0:00:24]} Bg7 {[%emt 0:00:20]} 43. Rg2 {[%emt 0:00:08]} Qe5 {[%emt 0:00:13]} 44. Re2 {[%emt 0:00:07]} h5 {[%emt 0:00:03]} 45. Kg2 {[%emt 0:00:03]} g5 {[%emt 0:00:03]} 46. Bf5 {[%emt 0:00:08]} g4 {[%emt 0:00:08]} 47. d6 {[%emt 0:00:01]} h3+ {[%emt 0:00:01]} 48. Kh1 {[%emt 0:00:08]} Qf4 {[%emt 0:00:13]} 49. Kg1 {[%emt 0:00:35]} Be5 {[%emt 0:00:04]} 50. d7 {[%emt 0:00:08]} h2+ {[%emt 0:00:01]} 51. Kg2 {[%emt 0:00:05]} h1=Q+ {[%emt 0:00:06]} 52. Kxh1 {[%emt 0:00:02]} Qf1# {[%emt 0:00:01]} 0-1

[Event "RUS-ch Men Rapid 2019"]
[Site "Sochi"]
[Date "2019.10.16"]
[Round "6.22"]
[White "Belozerov, Andrei"]
[Black "Chos, Alexey"]
[Result "1-0"]
[ECO "B90"]
[WhiteElo "2515"]
[BlackElo "2296"]
[Annotator "RC"]
[PlyCount "93"]
[EventDate "2019.10.15"]
[EventType "swiss"]
[EventCountry "RUS"]
[SourceTitle "playchess.com"]
[Source "ChessBase"]
[SourceQuality "1"]
[TimeControl "900+10"]

1. e4 {[%emt 0:00:18]} c5 {[%emt 0:00:00]} 2. Nf3 {[%emt 0:00:01]} d6 {[%emt 0:00:00]} 3. d4 {[%emt 0:00:00]} cxd4 {[%emt 0:00:00]} 4. Nxd4 {[%emt 0:00:01]} Nf6 {[%emt 0:00:00]} 5. Nc3 {[%emt 0:00:01]} a6 {[%emt 0:00:00]} 6. f3 {[%emt 0:00:01]} e5 {[%emt 0:00:05]} 7. Nb3 {[%emt 0:00:01]} Be6 {[%emt 0:00:04]} 8. Be3 {[%emt 0:00:02]} Be7 {[%emt 0:00:11]} 9. Qd2 {[%emt 0:00:02]} Qc7 {[%emt 0:00:24]} 10. g4 {[%emt 0:00:10]} h6 {[%emt 0:00:01]} 11. O-O-O {[%emt 0:00:07]} Nbd7 {[%emt 0:00:03]} 12. h4 {[%emt 0:00:05]} b5 {[%emt 0:00:02]} 13. Qf2 {[%emt 0:02:35]} Rb8 {[%emt 0:01:06]} 14. Kb1 {[%emt 0:01:12]} Nb6 {[%emt 0:00:07]} 15. Rg1 {[%emt 0:02:21]} Nc4 {[%emt 0:00:04]} 16. Bc1 {[%emt 0:00:28]} a5 {[%emt 0:00:36]} 17. Nd5 {[%emt 0:00:22]} Nxd5 {[%emt 0:02:27]} 18. exd5 {[%emt 0:00:01]} Bd7 {[%emt 0:00:02]} 19. g5 {[%emt 0:01:36]} hxg5 {[%emt 0:01:12]} 20. Bxg5 {[%emt 0:00:05]} Bf5 {[%emt 0:01:25]} 21. Bd3 {[%emt 0:00:32]} g6 {[%emt 0:01:26]} 22. Bxe7 {[%emt 0:00:55]} Kxe7 {[%emt 0:01:28]} 23. f4 {[%emt 0:00:04]} a4 {[%emt 0:01:37]} 24. Nd2 {[%emt 0:01:55]} Qb6 {[%emt 0:00:21]} 25. Qg3 {[%emt 0:00:37]} Qd4 {[%emt 0:00:10]} 26. Bxc4 {[%emt 0:01:52]} bxc4 {[%emt 0:00:27]} 27. Qa3 {[%emt 0:00:09]} Qxf4 {[%emt 0:03:22]} 28. Rgf1 {[%emt 0:00:03]} Qxh4 {[%emt 0:02:37]} 29. Nf3 {[%emt 0:02:04]} Qe4 {[%emt 0:00:03]} 30. Nd4 {[%emt 0:00:01]} c3 {[%emt 0:00:19]} 31. Nc6+ {[%emt 0:00:26]} Kf6 {[%emt 0:00:01]} 32. Qxc3 {[%emt 0:00:14]} Rh3 {[%emt 0:00:18]} 33. Qd2 {[%emt 0:01:08]} Rb5 {[%emt 0:00:12]} 34. Ka1 {[%emt 0:00:18]} a3 {[%emt 0:00:12]} 35. b3 {[%emt 0:00:02]} Rc5 {[%emt 0:00:06]} 36. c4 {[%emt 0:00:07]} Kg7 {[%emt 0:00:04]} 37. Ne7 {[%emt 0:00:15]} Qd4+ {[%emt 0:00:09]} 38. Qxd4 {[%emt 0:00:05]} exd4 {[%emt 0:00:01]} 39. Rxd4 {[%emt 0:00:36]} Bd7 {[%emt 0:00:05]} 40. Rdf4 {[%emt 0:00:21]} f5 {[%emt 0:00:03]} 41. Rg1 {[%emt 0:00:04]} Rh6 {[%emt 0:00:15]} 42. Rxf5 {[%emt 0:00:11]} Rc7 {[%emt 0:00:07]} 43. Rfg5 {[%emt 0:00:05]} Kf6 {[%emt 0:00:03]} 44. Ng8+ {[%emt 0:00:01]} Kg7 {[%emt 0:00:01]} 45. Nxh6 {[%emt 0:00:01]} Kxh6 {[%emt 0:00:01]} 46. Rxg6+ {[%emt 0:00:03]} Kh5 {[%emt 0:00:01]} 47. Rg7 {[%emt 0:00:03]} 1-0

[Event "RUS-ch Men Rapid 2019"]
[Site "Sochi"]
[Date "2019.10.16"]
[Round "6.23"]
[White "Gorbatov, Alexej"]
[Black "Belyakov, Bogdan"]
[Result "0-1"]
[ECO "C65"]
[WhiteElo "2355"]
[BlackElo "2495"]
[Annotator "ChessBase"]
[PlyCount "66"]
[EventDate "2019.10.15"]
[EventType "swiss"]
[EventCountry "RUS"]
[SourceTitle "playchess.com"]
[Source "ChessBase"]
[SourceQuality "1"]
[TimeControl "900+10"]

1. e4 {[%emt 0:00:00]} e5 {[%emt 0:00:00]} 2. Nf3 {[%emt 0:00:00]} Nc6 {[%emt 0:00:00]} 3. Bb5 {[%emt 0:00:00]} Nf6 {[%emt 0:00:20]} 4. Qe2 {[%emt 0:00:00]} Bc5 {[%emt 0:00:16]} 5. Bxc6 {[%emt 0:00:03]} bxc6 {[%emt 0:01:09]} 6. Nxe5 {[%emt 0:00:13]} O-O {[%emt 0:00:50]} 7. d3 {[%emt 0:03:59]} d5 {[%emt 0:03:29]} 8. Nd2 {[%emt 0:04:31]} Re8 {[%emt 0:01:22]} 9. Nef3 {[%emt 0:03:30]} Ba6 {[%emt 0:00:19]} 10. e5 {[%emt 0:01:10]} Ng4 {[%emt 0:00:39]} 11. O-O {[%emt 0:00:01]} Bd6 {[%emt 0:00:58]} 12. h3 {[%emt 0:01:58]} Nxe5 {[%emt 0:00:04]} 13. Nxe5 {[%emt 0:00:01]} Rxe5 {[%emt 0:00:24]} 14. Qg4 {[%emt 0:01:21]} Bc8 {[%emt 0:00:42]} 15. Qa4 {[%emt 0:00:02]} Bd7 {[%emt 0:00:05]} 16. Nf3 {[%emt 0:00:01]} c5 {[%emt 0:01:03]} 17. Qa5 {[%emt 0:00:08]} Rf5 {[%emt 0:00:12]} 18. Nh2 {[%emt 0:00:02]} h5 {[%emt 0:01:24]} 19. f4 {[%emt 0:00:44]} Qf6 {[%emt 0:00:55]} 20. Qc3 {[%emt 0:00:23]} d4 {[%emt 0:00:10]} 21. Qd2 {[%emt 0:00:02]} Bc6 {[%emt 0:00:33]} 22. Qf2 {[%emt 0:00:05]} Qg6 {[%emt 0:00:12]} 23. Bd2 {[%emt 0:00:02]} Bxf4 {[%emt 0:00:48]} 24. Bxf4 {[%emt 0:00:01]} Rxf4 {[%emt 0:00:02]} 25. Qd2 {[%emt 0:00:04]} Rh4 {[%emt 0:00:02]} 26. Nf3 {[%emt 0:00:17]} Rxh3 {[%emt 0:01:50]} 27. Ne5 {[%emt 0:00:02]} Qg3 {[%emt 0:00:02]} 28. Nxc6 {[%emt 0:00:02]} Qh2+ {[%emt 0:00:10]} 29. Kf2 {[%emt 0:00:01]} Qg3+ {[%emt 0:00:40]} 30. Kg1 {[%emt 0:00:01]} Qh2+ {[%emt 0:00:14]} 31. Kf2 {[%emt 0:00:01]} Rg3 {[%emt 0:00:15]} 32. Rg1 {[%emt 0:00:12]} Re8 {[%emt 0:00:20]} 33. Kf1 {[%emt 0:00:38]} Rf3+ {[%emt 0:00:03]} 0-1

[Event "RUS-ch Men Rapid 2019"]
[Site "Sochi"]
[Date "2019.10.16"]
[Round "6.24"]
[White "Glek, Igor"]
[Black "Goltsev, Dmitry"]
[Result "1-0"]
[ECO "B40"]
[WhiteElo "2467"]
[BlackElo "2309"]
[Annotator "ChessBase"]
[PlyCount "93"]
[EventDate "2019.10.15"]
[EventType "swiss"]
[EventCountry "RUS"]
[SourceTitle "playchess.com"]
[Source "ChessBase"]
[SourceQuality "1"]
[TimeControl "900+10"]

1. e4 {[%emt 0:00:08]} c5 {[%emt 0:00:00]} 2. Nf3 {[%emt 0:00:02]} e6 {[%emt 0:00:00]} 3. Nc3 {[%emt 0:00:02]} Nc6 {[%emt 0:00:00]} 4. Bb5 {[%emt 0:00:08]} Qc7 {[%emt 0:00:06]} 5. O-O {[%emt 0:00:05]} Nge7 {[%emt 0:00:20]} 6. Re1 {[%emt 0:02:39]} d6 {[%emt 0:00:23]} 7. d4 {[%emt 0:00:39]} cxd4 {[%emt 0:00:16]} 8. Nxd4 {[%emt 0:00:58]} a6 {[%emt 0:00:12]} 9. Ba4 {[%emt 0:01:33]} Qd8 {[%emt 0:03:29]} 10. Bg5 {[%emt 0:01:14]} Bd7 {[%emt 0:00:31]} 11. Ndb5 {[%emt 0:02:16]} axb5 {[%emt 0:01:45]} 12. Nxb5 {[%emt 0:00:01]} Bc8 {[%emt 0:01:00]} 13. Nxd6+ {[%emt 0:00:05]} Qxd6 {[%emt 0:00:03]} 14. Qxd6 {[%emt 0:00:02]} Rxa4 {[%emt 0:00:02]} 15. Qc7 {[%emt 0:02:32]} f6 {[%emt 0:01:10]} 16. Bd2 {[%emt 0:01:00]} Rc4 {[%emt 0:03:39]} 17. c3 {[%emt 0:00:44]} Ne5 {[%emt 0:00:19]} 18. Qb6 {[%emt 0:00:04]} Kf7 {[%emt 0:00:43]} 19. b3 {[%emt 0:00:19]} Rc6 {[%emt 0:00:10]} 20. Qb5 {[%emt 0:00:19]} Nd7 {[%emt 0:00:44]} 21. f4 {[%emt 0:00:33]} Rb6 {[%emt 0:00:28]} 22. Qe2 {[%emt 0:00:06]} Nc6 {[%emt 0:00:09]} 23. Be3 {[%emt 0:00:01]} Ra6 {[%emt 0:00:06]} 24. Rad1 {[%emt 0:00:08]} Be7 {[%emt 0:00:21]} 25. Rd2 {[%emt 0:00:29]} Rd8 {[%emt 0:00:34]} 26. Red1 {[%emt 0:00:05]} Nf8 {[%emt 0:00:10]} 27. Rxd8 {[%emt 0:00:13]} Nxd8 {[%emt 0:00:06]} 28. f5 {[%emt 0:00:08]} exf5 {[%emt 0:00:12]} 29. exf5 {[%emt 0:00:24]} Bxf5 {[%emt 0:00:08]} 30. Qb5 {[%emt 0:00:11]} Be6 {[%emt 0:00:27]} 31. Rxd8 {[%emt 0:00:06]} Rxa2 {[%emt 0:00:36]} 32. Qxb7 {[%emt 0:00:04]} Ra5 {[%emt 0:00:28]} 33. b4 {[%emt 0:00:13]} Ra1+ {[%emt 0:00:08]} 34. Kf2 {[%emt 0:00:01]} Ng6 {[%emt 0:00:24]} 35. Bc5 {[%emt 0:00:12]} Ra2+ {[%emt 0:00:05]} 36. Ke1 {[%emt 0:00:04]} Ra1+ {[%emt 0:00:30]} 37. Rd1 {[%emt 0:00:02]} Ra2 {[%emt 0:00:06]} 38. Rd2 {[%emt 0:00:06]} Ra1+ {[%emt 0:00:02]} 39. Kf2 {[%emt 0:00:01]} Bc4 {[%emt 0:00:31]} 40. Bxe7 {[%emt 0:00:38]} Nxe7 {[%emt 0:00:03]} 41. Rd7 {[%emt 0:00:14]} Rf1+ {[%emt 0:00:03]} 42. Ke3 {[%emt 0:00:14]} Re1+ {[%emt 0:00:01]} 43. Kd4 {[%emt 0:00:02]} Bb3 {[%emt 0:00:09]} 44. c4 {[%emt 0:00:16]} Ke8 {[%emt 0:00:06]} 45. Rc7 {[%emt 0:00:37]} Bc2 {[%emt 0:00:52]} 46. Kc3 {[%emt 0:00:18]} Bf5 {[%emt 0:00:08]} 47. Qb5+ {[%emt 0:00:06]} 1-0

[Event "RUS-ch Men Rapid 2019"]
[Site "Sochi"]
[Date "2019.10.16"]
[Round "6.25"]
[White "Bryakin, Mikhail"]
[Black "Gabitov, Ruslan"]
[Result "1/2-1/2"]
[ECO "A43"]
[WhiteElo "2440"]
[BlackElo "2172"]
[Annotator "NA"]
[PlyCount "104"]
[EventDate "2019.10.15"]
[EventType "swiss"]
[EventCountry "RUS"]
[SourceTitle "playchess.com"]
[Source "ChessBase"]
[SourceQuality "1"]
[TimeControl "900+10"]

1. d4 {[%emt 0:00:00]} g6 {[%emt 0:00:00]} 2. c4 {[%emt 0:00:00]} Bg7 {[%emt 0:00:00]} 3. Nc3 {[%emt 0:00:00]} c5 {[%emt 0:00:00]} 4. d5 {[%emt 0:00:00]} Bxc3+ {[%emt 0:00:00]} 5. bxc3 {[%emt 0:00:00]} f5 {[%emt 0:00:04]} 6. Nf3 {[%emt 0:00:00]} Qa5 {[%emt 0:00:08]} 7. Qc2 {[%emt 0:00:03]} Nf6 {[%emt 0:00:14]} 8. Bh6 {[%emt 0:00:01]} Rg8 {[%emt 0:00:08]} 9. e3 {[%emt 0:00:34]} d6 {[%emt 0:00:13]} 10. Bd3 {[%emt 0:00:07]} Nbd7 {[%emt 0:00:04]} 11. a4 {[%emt 0:00:13]} Nb6 {[%emt 0:01:27]} 12. Nd2 {[%emt 0:00:06]} Bd7 {[%emt 0:02:06]} 13. Nb3 {[%emt 0:04:23]} Qa6 {[%emt 0:00:01]} 14. a5 {[%emt 0:00:01]} Nbxd5 {[%emt 0:05:38]} 15. cxd5 {[%emt 0:00:51]} c4 {[%emt 0:00:01]} 16. Be2 {[%emt 0:00:35]} cxb3 {[%emt 0:00:02]} 17. Qxb3 {[%emt 0:00:06]} b5 {[%emt 0:00:01]} 18. O-O {[%emt 0:01:45]} Kf7 {[%emt 0:00:30]} 19. c4 {[%emt 0:00:31]} Rab8 {[%emt 0:00:33]} 20. Qa2 {[%emt 0:01:00]} bxc4 {[%emt 0:00:52]} 21. Rfc1 {[%emt 0:00:58]} Rgc8 {[%emt 0:00:38]} 22. Bxc4 {[%emt 0:00:19]} Bb5 {[%emt 0:00:01]} 23. Bb3 {[%emt 0:00:16]} Rxc1+ {[%emt 0:00:44]} 24. Rxc1 {[%emt 0:00:00]} Rc8 {[%emt 0:00:07]} 25. e4 {[%emt 0:04:29]} Rxc1+ {[%emt 0:02:05]} 26. Bxc1 {[%emt 0:00:01]} Nxe4 {[%emt 0:00:03]} 27. Be3 {[%emt 0:00:15]} Nf6 {[%emt 0:00:36]} 28. h3 {[%emt 0:00:27]} Qb7 {[%emt 0:00:09]} 29. Qd2 {[%emt 0:00:34]} a6 {[%emt 0:00:45]} 30. Bd4 {[%emt 0:00:12]} Qc7 {[%emt 0:01:51]} 31. Bb6 {[%emt 0:00:25]} Qc8 {[%emt 0:00:16]} 32. Qe3 {[%emt 0:00:14]} Qd7 {[%emt 0:00:21]} 33. Bd4 {[%emt 0:00:12]} Qc8 {[%emt 0:00:11]} 34. Qh6 {[%emt 0:00:14]} Kg8 {[%emt 0:00:01]} 35. Qe3 {[%emt 0:00:17]} Kf7 {[%emt 0:00:01]} 36. f3 {[%emt 0:00:10]} Qc7 {[%emt 0:00:22]} 37. Bb6 {[%emt 0:00:24]} Qc8 {[%emt 0:00:01]} 38. g4 {[%emt 0:00:30]} fxg4 {[%emt 0:00:10]} 39. hxg4 {[%emt 0:00:02]} Bd7 {[%emt 0:00:07]} 40. Bd4 {[%emt 0:00:12]} Ng8 {[%emt 0:00:17]} 41. Qf4+ {[%emt 0:00:08]} Ke8 {[%emt 0:00:14]} 42. Bg7 {[%emt 0:00:13]} Qc5+ {[%emt 0:00:05]} 43. Kg2 {[%emt 0:00:08]} Kd8 {[%emt 0:00:36]} 44. Qf8+ Kc7 45. Qxg8 {[%emt 0:00:22]} Qe3 {[%emt 0:00:01]} 46. Bc4 {[%emt 0:00:42]} Qd2+ {[%emt 0:00:21]} 47. Kg3 {[%emt 0:00:15]} Qe1+ {[%emt 0:00:08]} 48. Kg2 {[%emt 0:00:01]} Qd2+ {[%emt 0:00:01]} 49. Kg3 {[%emt 0:00:01]} Qe1+ {[%emt 0:00:01]} 50. Kg2 {[%emt 0:00:25]} Qd2+ {[%emt 0:00:03]} 51. Kh3 Qc3 52. Be2 Qe3 1/2-1/2

[Event "RUS-ch Men Rapid 2019"]
[Site "Sochi"]
[Date "2019.10.16"]
[Round "6.26"]
[White "Nechaev, Oleg"]
[Black "Oganian, Miran"]
[Result "0-1"]
[ECO "D02"]
[WhiteElo "2371"]
[BlackElo "2436"]
[Annotator "NA"]
[PlyCount "118"]
[EventDate "2019.10.15"]
[EventType "swiss"]
[EventCountry "RUS"]
[SourceTitle "playchess.com"]
[Source "ChessBase"]
[SourceQuality "1"]
[TimeControl "900+10"]

1. d4 {[%emt 0:00:00]} d5 {[%emt 0:00:00]} 2. Nf3 {[%emt 0:00:00]} Nf6 {[%emt 0:00:13]} 3. Bf4 {[%emt 0:00:05]} c5 {[%emt 0:00:04]} 4. e3 {[%emt 0:00:02]} Nc6 {[%emt 0:00:02]} 5. c3 {[%emt 0:00:01]} Qb6 {[%emt 0:00:05]} 6. Qc2 {[%emt 0:00:02]} g6 {[%emt 0:00:05]} 7. Nbd2 {[%emt 0:00:14]} Bg7 {[%emt 0:00:47]} 8. dxc5 {[%emt 0:01:35]} Qxc5 {[%emt 0:00:06]} 9. Be2 {[%emt 0:00:02]} O-O {[%emt 0:00:30]} 10. O-O {[%emt 0:00:02]} Re8 {[%emt 0:00:45]} 11. Rfd1 {[%emt 0:03:28]} e5 {[%emt 0:00:25]} 12. Bg3 {[%emt 0:00:10]} Bf5 {[%emt 0:00:46]} 13. Qb3 {[%emt 0:00:15]} Qe7 {[%emt 0:00:15]} 14. Bb5 {[%emt 0:00:44]} e4 {[%emt 0:02:52]} 15. Nd4 {[%emt 0:00:14]} Nxd4 {[%emt 0:00:40]} 16. cxd4 {[%emt 0:00:05]} Rec8 {[%emt 0:00:14]} 17. Rdc1 {[%emt 0:00:17]} Be6 {[%emt 0:03:08]} 18. Be2 {[%emt 0:00:43]} h5 {[%emt 0:00:39]} 19. Rc3 {[%emt 0:00:18]} Ne8 {[%emt 0:00:57]} 20. h3 {[%emt 0:00:15]} h4 {[%emt 0:00:31]} 21. Bh2 {[%emt 0:00:07]} f5 {[%emt 0:01:38]} 22. Rac1 {[%emt 0:00:03]} Rxc3 {[%emt 0:00:08]} 23. Rxc3 {[%emt 0:00:16]} g5 {[%emt 0:00:12]} 24. Qa3 {[%emt 0:05:31]} Qf7 {[%emt 0:02:23]} 25. Nb3 {[%emt 0:01:09]} Bf8 {[%emt 0:00:04]} 26. Qa4 {[%emt 0:00:17]} b6 {[%emt 0:00:28]} 27. Bb5 {[%emt 0:00:29]} f4 {[%emt 0:00:09]} 28. Nd2 {[%emt 0:02:03]} Bd6 {[%emt 0:00:40]} 29. Bf1 {[%emt 0:01:02]} Rd8 {[%emt 0:00:07]} 30. a3 {[%emt 0:00:08]} Ng7 {[%emt 0:00:04]} 31. Qc2 {[%emt 0:00:10]} Rf8 {[%emt 0:00:33]} 32. Kh1 {[%emt 0:00:21]} Nf5 {[%emt 0:00:12]} 33. Be2 {[%emt 0:00:05]} fxe3 {[%emt 0:00:12]} 34. fxe3 {[%emt 0:00:01]} Ng3+ {[%emt 0:00:19]} 35. Bxg3 {[%emt 0:00:01]} Bxg3 {[%emt 0:00:02]} 36. Qd1 {[%emt 0:00:05]} Qf2 {[%emt 0:00:24]} 37. Qf1 {[%emt 0:00:12]} Bxh3 {[%emt 0:00:07]} 38. Qxf2 {[%emt 0:00:01]} Rxf2 {[%emt 0:00:01]} 39. gxh3 {[%emt 0:00:12]} Rxe2 {[%emt 0:00:02]} 40. Nf1 {[%emt 0:00:03]} Rxb2 {[%emt 0:00:31]} 41. Rc8+ {[%emt 0:00:02]} Kf7 {[%emt 0:00:01]} 42. Rd8 {[%emt 0:00:09]} Ke6 {[%emt 0:00:06]} 43. Rg8 {[%emt 0:00:02]} Ra2 {[%emt 0:00:15]} 44. Rxg5 {[%emt 0:00:33]} Rxa3 {[%emt 0:00:01]} 45. Nxg3 {[%emt 0:00:07]} hxg3 {[%emt 0:00:02]} 46. Rxg3 {[%emt 0:00:01]} b5 {[%emt 0:00:05]} 47. Rg6+ {[%emt 0:00:16]} Ke7 {[%emt 0:00:28]} 48. Rg5 {[%emt 0:00:04]} Rxe3 {[%emt 0:00:06]} 49. Rxd5 {[%emt 0:00:02]} Rxh3+ {[%emt 0:00:04]} 50. Kg2 {[%emt 0:00:01]} Rb3 {[%emt 0:00:02]} 51. Re5+ Kd6 52. Rxe4 {[%emt 0:00:02]} Kd5 {[%emt 0:00:02]} 53. Re7 {[%emt 0:00:01]} a5 {[%emt 0:00:13]} 54. Rd7+ {[%emt 0:00:02]} Kc4 {[%emt 0:00:05]} 55. d5 {[%emt 0:00:02]} Rd3 {[%emt 0:00:02]} 56. d6 {[%emt 0:00:01]} Kc5 {[%emt 0:00:04]} 57. Ra7 {[%emt 0:00:01]} Kb6 {[%emt 0:00:04]} 58. Rd7 {[%emt 0:00:04]} Kc6 {[%emt 0:00:02]} 59. Ra7 {[%emt 0:00:07]} a4 {[%emt 0:00:20]} 0-1